fUSD/lending_fUSD_20260404
["ID","MTS","AMOUNT","RATE_DAILY","PERIOD"]
[419700252,1775315442676,-150.0,0.00014759,2]
[419700253,1775315442687,-150.0,0.00014763,2]
[419700254,1775315442697,-150.0,0.00014764,2]
[419700255,1775315442706,-150.0,0.00014772,2]
[419700256,1775315442716,-150.0,0.00014778,2]
[419700257,1775315442727,-150.0,0.00014781,2]
[419700258,1775315442736,-150.0,0.00014784,2]
[419700260,1775315442745,-150.0,0.00014784,2]
[419700261,1775315442756,-150.0,0.00014786,2]
[419700262,1775315442765,-150.0,0.00014786,2]
[419700263,1775315442775,-150.0,0.00014805,2]
[419700264,1775315442785,-150.0,0.00014807,2]
[419700266,1775315442795,-150.0,0.00014809,2]
[419700268,1775315442805,-150.0,0.00014814,2]
[419700269,1775315442814,-150.0,0.00014814,2]
[419700270,1775315442823,-150.0,0.00014819,2]
[419700271,1775315442833,-150.0,0.00014827,2]
[419700272,1775315442843,-150.0,0.00014836,2]
[419700273,1775315442852,-150.0,0.00014836,2]
[419700274,1775315442862,-150.0,0.00014841,2]
[419700275,1775315442872,-150.0,0.00014841,2]
[419700276,1775315442880,-150.0,0.00014847,2]
[419700277,1775315442890,-150.0,0.00014848,2]
[419700278,1775315442899,-150.0,0.00014848,2]
[419700279,1775315442909,-166.66,0.00014852,2]
[419700280,1775315442918,-150.0,0.00014857,2]
[419700281,1775315442928,-150.0,0.00014857,2]
[419700282,1775315442938,-150.0,0.00014857,2]
[419700283,1775315442947,-150.0,0.00014865,2]
[419700284,1775315442957,-150.0,0.00014869,2]
[419700285,1775315442967,-150.0,0.00014869,2]
[419700286,1775315442979,-150.0,0.00014869,2]
[419700287,1775315442988,-178.83121777,0.00014876,2]
[419700288,1775315442997,-150.0,0.00014884,2]
[419700289,1775315443007,-501.88837508,0.00014888,2]
[419700290,1775315443018,-150.0,0.00014891,2]
[419700291,1775315443029,-150.0,0.00014895,2]
[419700292,1775315443039,-150.0,0.00014895,2]
[419700293,1775315443049,-150.0,0.00014897,2]
[419700294,1775315443060,-150.0,0.00014897,2]
[419700295,1775315443069,-289.5275225,0.00014908,2]
[419700296,1775315443080,-150.0,0.00014909,2]
[419700297,1775315443090,-150.0,0.00014912,2]
[419700298,1775315443101,-150.0,0.00014912,2]
[419700299,1775315443111,-500.0,0.0001492,2]
[419700300,1775315443122,-150.0,0.00014921,2]
[419700301,1775315443132,-150.0,0.00014924,2]
[419700302,1775315443142,-150.0,0.00014924,2]
[419700303,1775315443152,-150.0,0.00014924,2]
[419700304,1775315443163,-150.0,0.00014933,2]
[419700305,1775315443174,-150.0,0.00014933,2]
[419700306,1775315443183,-150.0,0.00014933,2]
[419700307,1775315443193,-150.0,0.00014933,2]
[419700308,1775315443203,-212.54,0.00014948,2]
[419700309,1775315443213,-150.0,0.00014952,2]
[419700310,1775315443223,-150.0,0.00014952,2]
[419700311,1775315443234,-150.0,0.00014953,2]
[419700312,1775315443243,-150.0,0.00014955,2]
[419700313,1775315443253,-9360.56721341,0.00014956,2]
[419700314,1775315443263,-8154.22157126,0.00014957,2]
[419700315,1775315443273,-150.0,0.00014958,2]
[419700316,1775315443283,-500.0,0.00014962,2]
[419700317,1775315443293,-500.0,0.00014962,2]
[419700318,1775315443303,-500.0,0.00014962,2]
[419700319,1775315443312,-500.0,0.00014962,2]
[419700320,1775315443323,-500.0,0.00014962,2]
[419700321,1775315443333,-500.0,0.00014962,2]
[419700322,1775315443343,-500.0,0.00014962,2]
[419700323,1775315443353,-500.0,0.00014962,2]
[419700324,1775315443363,-369.0,0.00014962,2]
[419700325,1775315443373,-150.0,0.00014962,2]
[419700326,1775315443383,-150.0,0.00014962,2]
[419700327,1775315443393,-200.0,0.00014962,2]
[419700328,1775315443403,-2078.0,0.00014966,5]
[419700329,1775315443412,-150.0,0.00014971,2]
[419700330,1775315443423,-150.0,0.00014971,2]
[419700331,1775315443433,-150.0,0.00014976,2]
[419700332,1775315443443,-150.0,0.00014976,2]
[419700333,1775315443453,-150.0,0.00014979,2]
[419700334,1775315443463,-150.0,0.00014979,2]
[419700335,1775315443473,-150.0,0.00014982,2]
[419700336,1775315443483,-150.0,0.00014982,2]
[419700337,1775315443492,-150.0,0.00014988,2]
[419700338,1775315443502,-166.0,0.00014988,2]
[419700339,1775315443513,-150.0,0.00014995,2]
[419700340,1775315443523,-150.0,0.00014997,2]
[419700341,1775315443533,-300.0,0.00015,2]
[419700342,1775315443543,-3044.58224996,0.00015,2]
[419700343,1775315443554,-375.77095481,0.00015,2]
[419700344,1775315443564,-150.0,0.00015007,2]
[419700345,1775315443573,-150.0,0.00015007,2]
[419700346,1775315443582,-370.59208039,0.00015007,2]
[419700347,1775315443593,-150.0,0.0001501,2]
[419700348,1775315443602,-150.0,0.00015011,2]
[419700349,1775315443612,-150.0,0.00015019,2]
[419700350,1775315443622,-150.0,0.00015033,2]
[419700351,1775315443632,-150.0,0.00015034,2]
[419700352,1775315443642,-150.0,0.00015034,2]
[419700353,1775315443652,-150.0,0.0001504,2]
[419700354,1775315443662,-150.0,0.0001504,2]
[419700355,1775315443671,-150.0,0.0001504,2]
[419700356,1775315443681,-150.0,0.00015048,2]
[419700357,1775315443691,-150.0,0.00015055,2]
[419700358,1775315443701,-150.0,0.00015061,2]
[419700359,1775315443710,-150.0,0.00015062,2]
[419700360,1775315443720,-150.0,0.00015062,2]
[419700361,1775315443729,-1860.18,0.00015068,2]
[419700362,1775315443739,-803.07880727,0.00015068,2]
[419700363,1775315443749,-150.0,0.00015069,2]
[419700364,1775315443758,-150.0,0.0001507,2]
[419700365,1775315443768,-3190.37789154,0.00015071,2]
[419700366,1775315443779,-150.0,0.00015083,2]
[419700367,1775315443788,-150.0,0.00015086,2]
[419700368,1775315443798,-150.0,0.00015086,2]
[419700369,1775315443808,-150.0,0.00015086,2]
[419700370,1775315443819,-150.0,0.0001509,2]
[419700371,1775315443829,-150.0,0.0001509,2]
[419700372,1775315443840,-166.66,0.00015093,2]
[419700373,1775315443849,-150.0,0.00015098,2]
[419700374,1775315443859,-500.0,0.000151,2]
[419700375,1775315443868,-300.0,0.000151,2]
[419700376,1775315443879,-150.0,0.00015104,2]
[419700377,1775315443888,-150.0,0.00015104,2]
[419700378,1775315443898,-150.0,0.00015107,2]
[419700379,1775315443908,-1004.16690782,0.0001511,2]
[419700380,1775315443918,-1000.0,0.0001511,2]
[419700381,1775315443927,-501.18780645,0.0001511,2]
[419700382,1775315443937,-301.99577911,0.00015112,2]
[419700383,1775315443947,-150.0,0.00015117,2]
[419700384,1775315443958,-150.0,0.00015117,2]
[419700385,1775315443968,-150.0,0.00015124,2]
[419700386,1775315443979,-150.0,0.00015125,2]
[419700387,1775315443988,-150.0,0.00015127,2]
[419700388,1775315443998,-150.0,0.00015127,2]
[419700389,1775315444276,-189.8966448,0.00015139,2]
[419700390,1775315444286,-166.66,0.0001514,2]
[419700391,1775315444295,-150.0,0.00015144,2]
[419700392,1775315444305,-150.0,0.00015145,2]
[419700393,1775315444315,-150.0,0.00015145,2]
[419700394,1775315444324,-150.0,0.00015147,2]
[419700395,1775315444333,-291.5860601,0.00015147,2]
[419700396,1775315444343,-150.0,0.00015156,2]
[419700397,1775315444352,-150.0,0.00015162,2]
[419700398,1775315444362,-1974.94062421,0.00015167,2]
[419700399,1775315444372,-150.0,0.00015168,2]
[419700400,1775315444381,-150.0,0.00015168,2]
[419700401,1775315444391,-150.0,0.00015172,2]
[419700402,1775315444400,-150.0,0.00015172,2]
[419700403,1775315444410,-310.4251096,0.0001518,2]
[419700404,1775315444419,-200.0,0.0001518,2]
[419700405,1775315444429,-1428.38747117,0.0001518,2]
[419700406,1775315444439,-500.0,0.0001518,2]
[419700407,1775315444449,-9407.62396624,0.0001518,2]
[419700408,1775315444458,-500.0,0.0001518,2]
[419700409,1775315444468,-500.0,0.0001518,2]
[419700410,1775315444478,-500.0,0.0001518,2]
[419700411,1775315444488,-500.0,0.0001518,2]
[419700412,1775315444497,-500.0,0.0001518,2]
[419700413,1775315444507,-250.0,0.0001518,2]
[419700414,1775315444517,-500.0,0.0001518,2]
[419700415,1775315444527,-250.0,0.0001518,2]
[419700416,1775315444536,-250.0,0.0001518,2]
[419700417,1775315444546,-250.0,0.0001518,2]
[419700418,1775315444556,-500.0,0.0001518,2]
[419700419,1775315444565,-250.0,0.0001518,2]
[419700420,1775315444575,-500.0,0.0001518,2]
[419700421,1775315444585,-250.0,0.0001518,2]
[419700422,1775315444594,-500.0,0.0001518,2]
[419700423,1775315444604,-250.0,0.0001518,2]
[419700424,1775315444613,-500.0,0.0001518,2]
[419700425,1775315444624,-250.0,0.0001518,2]
[419700426,1775315444634,-500.0,0.0001518,2]
[419700427,1775315444644,-250.0,0.0001518,2]
[419700428,1775315444653,-250.0,0.0001518,2]
[419700429,1775315444662,-250.0,0.0001518,2]
[419700430,1775315444672,-500.0,0.0001518,2]
[419700431,1775315444682,-500.0,0.0001518,2]
[419700432,1775315444692,-500.0,0.0001518,2]
[419700433,1775315444701,-500.0,0.0001518,2]
[419700434,1775315444711,-151.0,0.0001518,2]
[419700435,1775315444721,-500.0,0.0001518,2]
[419700436,1775315444731,-500.0,0.0001518,2]
[419700437,1775315444740,-500.0,0.0001518,2]
[419700438,1775315444751,-500.0,0.0001518,2]
[419700439,1775315444760,-743.50770149,0.0001518,2]
[419700440,1775315444770,-500.0,0.0001518,2]
[419700441,1775315444779,-500.0,0.0001518,2]
[419700442,1775315444790,-200.0,0.0001518,2]
[419700443,1775315444799,-500.0,0.0001518,2]
[419700444,1775315444809,-174.61919141,0.0001518,2]
[419700445,1775315444819,-279.9045709,0.0001518,2]
[419700446,1775315444828,-170.0,0.0001518,2]
[419700447,1775315444838,-170.0,0.0001518,2]
[419700448,1775315444848,-170.0,0.0001518,2]
[419700449,1775315444857,-170.0,0.0001518,2]
[419700450,1775315444867,-170.0,0.0001518,2]
[419700451,1775315444876,-170.0,0.0001518,2]
[419700452,1775315444886,-170.0,0.0001518,2]
[419700453,1775315444895,-170.0,0.0001518,2]
[419700454,1775315444906,-170.0,0.0001518,2]
[419700455,1775315444916,-170.0,0.0001518,2]
[419700456,1775315444926,-170.0,0.0001518,2]
[419700457,1775315444936,-150.0,0.00015181,2]
[419700458,1775315444945,-150.0,0.00015185,2]
[419700459,1775315444956,-150.0,0.00015189,2]
[419700460,1775315444966,-150.0,0.000152,2]
[419700461,1775315444976,-150.0,0.000152,2]
[419700462,1775315444986,-150.0,0.000152,2]
[419700463,1775315444997,-150.0,0.000152,2]
[419700464,1775315445006,-150.0,0.000152,2]
[419700465,1775315445016,-177.12,0.00015205,2]
[419700466,1775315445026,-150.0,0.00015211,2]
[419700467,1775315445050,-150.0,0.00015215,2]
[419700468,1775315445062,-150.0,0.00015219,2]
[419700469,1775315445074,-150.0,0.00015228,2]
[419700470,1775315445085,-150.0,0.00015228,2]
[419700471,1775315445096,-150.0,0.00015232,2]
[419700472,1775315445106,-150.0,0.00015232,2]
[419700473,1775315445117,-500.0,0.00015235,2]
[419700474,1775315445127,-151.0,0.00015235,2]
[419700475,1775315445138,-150.0,0.00015238,2]
[419700476,1775315445149,-177.12,0.00015241,2]
[419700477,1775315445160,-150.0,0.00015244,2]
[419700478,1775315445170,-150.0,0.00015253,2]
[419700479,1775315445181,-150.0,0.00015255,2]
[419700480,1775315445192,-150.0,0.00015255,2]
[419700481,1775315445202,-150.0,0.00015256,2]
[419700482,1775315445213,-9360.56721341,0.00015266,2]
[419700483,1775315445224,-8154.22157126,0.00015266,2]
[419700484,1775315445234,-150.0,0.00015273,2]
[419700485,1775315445244,-150.0,0.00015273,2]
[419700486,1775315445256,-150.0,0.00015275,2]
[419700487,1775315445266,-150.0,0.00015276,2]
[419700488,1775315445276,-150.0,0.00015283,2]
[419700489,1775315445286,-150.0,0.00015283,2]
[419700490,1775315445297,-202.55,0.00015289,2]
[419700491,1775315445307,-500.0,0.0001529,2]
[419700492,1775315445317,-151.0,0.0001529,2]
[419700493,1775315445328,-150.0,0.00015293,2]
[419700494,1775315445338,-150.0,0.00015296,2]
[419700495,1775315445348,-150.0,0.00015296,2]
[419700496,1775315445359,-390.0,0.00015299,2]
[419700497,1775315445369,-1517.64,0.000153,2]
[419700498,1775315445380,-150.0,0.00015302,2]
[419700499,1775315445390,-785.54,0.00015306,2]
[419700500,1775315445400,-4999.99,0.0001531,2]
[419700501,1775315445411,-1266.82,0.0001531,2]
[419700502,1775315445421,-299.99,0.0001531,2]
[419700503,1775315445432,-29684.17,0.0001531,2]
[419700504,1775315445442,-150.0,0.0001531,2]
[419700505,1775315445453,-150.0,0.0001531,2]
[419700506,1775315445464,-150.0,0.00015314,2]
[419700507,1775315445475,-150.0,0.00015314,2]
[419700508,1775315445485,-150.0,0.00015314,2]
[419700509,1775315445495,-150.0,0.00015317,2]
[419700510,1775315445505,-150.0,0.0001533,2]
[419700511,1775315445515,-150.0,0.00015331,2]
[419700512,1775315445526,-150.0,0.00015338,2]
[419700513,1775315445543,-150.0,0.00015338,2]
[419700514,1775315445554,-150.0,0.00015339,2]
[419700515,1775315445565,-500.0,0.00015345,2]
[419700516,1775315445575,-151.0,0.00015345,2]
[419700517,1775315445587,-150.0,0.00015345,2]
[419700518,1775315445597,-150.0,0.00015352,2]
[419700519,1775315445608,-150.0,0.0001536,2]
[419700520,1775315445619,-150.0,0.0001536,2]
[419700521,1775315445630,-150.0,0.0001536,2]
[419700522,1775315445641,-150.0,0.00015366,2]
[419700523,1775315445652,-150.0,0.00015366,2]
[419700524,1775315445663,-150.0,0.00015367,2]
[419700525,1775315445674,-150.0,0.00015381,2]
[419700526,1775315445685,-150.0,0.00015389,2]
[419700527,1775315445696,-150.0,0.0001539,2]
[419700528,1775315445707,-150.0,0.00015393,2]
[419700529,1775315445718,-150.0,0.00015393,2]
[419700530,1775315445729,-512.53794019,0.000154,2]
[419700531,1775315445740,-500.0,0.000154,2]
[419700532,1775315445751,-151.0,0.000154,2]
[419700533,1775315445763,-150.0,0.00015403,2]
[419700534,1775315445773,-150.0,0.00015405,2]
[419700536,1775315445784,-150.0,0.00015418,2]
[419700537,1775315445795,-150.0,0.00015418,2]
[419700538,1775315445806,-150.0,0.00015421,2]
[419700539,1775315445816,-150.0,0.00015421,2]
[419700540,1775315445827,-150.0,0.00015424,2]
[419700542,1775315445837,-150.0,0.00015424,2]
[419700543,1775315445848,-150.0,0.00015429,2]
[419700544,1775315445859,-150.0,0.00015429,2]
[419700545,1775315445870,-852.29735569,0.0001543,2]
[419700546,1775315445880,-4626.0,0.00015433,2]
[419700547,1775315445891,-230.76,0.00015439,2]
[419700548,1775315445901,-150.0,0.00015442,2]
[419700549,1775315445912,-150.0,0.00015445,2]
[419700550,1775315445923,-150.0,0.00015447,2]
[419700551,1775315445933,-150.0,0.00015448,2]
[419700552,1775315445944,-150.0,0.00015448,2]
[419700553,1775315445955,-500.0,0.00015455,2]
[419700554,1775315445966,-151.0,0.00015455,2]
[419700555,1775315445977,-548.7382906,0.00015457,2]
[419700557,1775315445987,-150.0,0.00015467,2]
[419700558,1775315445997,-150.0,0.00015467,2]
[419700559,1775315446009,-150.0,0.00015467,2]
[419700560,1775315446020,-150.0,0.00015467,2]
[419700561,1775315446035,-500.0,0.00015468,2]
[419700562,1775315446046,-150.0,0.00015476,2]
[419700563,1775315446057,-150.0,0.00015476,2]
[419700564,1775315446068,-150.0,0.00015476,2]
[419700565,1775315446079,-2603.0,0.00015477,2]
[419700566,1775315446091,-150.0,0.00015479,2]
[419700567,1775315446102,-150.0,0.00015488,2]
[419700568,1775315446112,-150.0,0.00015488,2]
[419700569,1775315446124,-150.0,0.00015491,2]
[419700570,1775315446135,-1231.35459603,0.000155,2]
[419700571,1775315446147,-150.0,0.00015503,2]
[419700572,1775315446158,-150.0,0.00015503,2]
[419700573,1775315446169,-150.0,0.00015505,2]
[419700574,1775315446181,-150.0,0.00015505,2]
[419700575,1775315446191,-150.0,0.00015509,2]
[419700576,1775315446202,-500.0,0.0001551,2]
[419700577,1775315446212,-151.0,0.0001551,2]
[419700578,1775315446224,-2603.0,0.00015511,2]
[419700579,1775315446235,-150.0,0.00015516,2]
[419700580,1775315446246,-150.0,0.00015531,2]
[419700581,1775315446256,-150.0,0.00015531,2]
[419700582,1775315446267,-150.0,0.00015531,2]
[419700583,1775315446278,-150.0,0.00015535,2]
[419700584,1775315446288,-150.0,0.00015543,2]
[419700585,1775315446300,-150.0,0.00015543,2]
[419700586,1775315446310,-150.0,0.00015543,2]
[419700587,1775315446320,-150.0,0.00015552,2]
[419700588,1775315446331,-150.0,0.00015552,2]
[419700589,1775315446341,-150.0,0.00015553,2]
[419700590,1775315446352,-150.0,0.00015559,2]
[419700591,1775315446362,-150.0,0.00015559,2]
[419700592,1775315446373,-150.0,0.00015564,2]
[419700593,1775315446383,-150.0,0.00015564,2]
[419700594,1775315446394,-500.0,0.00015565,2]
[419700595,1775315446404,-151.0,0.00015565,2]
[419700596,1775315446415,-150.0,0.00015573,2]
[419700597,1775315446425,-9360.56721341,0.00015575,2]
[419700598,1775315446436,-8154.22157126,0.00015576,2]
[419700599,1775315446446,-785.54,0.0001558,2]
[419700600,1775315446457,-150.0,0.00015581,2]
[419700601,1775315446468,-150.0,0.00015586,2]
[419700602,1775315446478,-150.0,0.00015586,2]
[419700603,1775315446488,-150.0,0.00015591,2]
[419700604,1775315446499,-150.0,0.00015593,2]
[419700605,1775315446509,-150.0,0.00015595,2]
[419700606,1775315446520,-2000.0,0.00015601,2]
[419700607,1775315446530,-150.0,0.00015614,2]
[419700608,1775315446542,-150.0,0.00015614,2]
[419700609,1775315446552,-150.0,0.00015616,2]
[419700610,1775315446563,-150.0,0.00015616,2]
[419700611,1775315446573,-150.0,0.00015619,2]
[419700612,1775315446584,-500.0,0.0001562,2]
[419700613,1775315446594,-151.0,0.0001562,2]
[419700614,1775315446604,-150.0,0.00015622,2]
[419700615,1775315446615,-418.62752304,0.00015623,2]
[419700616,1775315446625,-150.0,0.00015628,2]
[419700617,1775315446636,-855.35507685,0.00015634,2]
[419700618,1775315446646,-2000.0,0.00015635,2]
[419700619,1775315446656,-150.0,0.00015636,2]
[419700620,1775315446666,-150.0,0.00015637,2]
[419700621,1775315446677,-150.0,0.00015641,2]
[419700622,1775315446687,-150.0,0.00015641,2]
[419700623,1775315446697,-150.0,0.00015651,2]
[419700624,1775315446708,-150.0,0.00015657,2]
[419700625,1775315446718,-150.0,0.00015657,2]
[419700626,1775315446728,-744.6131476,0.00015658,2]
[419700627,1775315446738,-150.0,0.00015659,2]
[419700628,1775315446748,-150.0,0.00015665,2]
[419700629,1775315446758,-150.0,0.00015669,2]
[419700630,1775315446768,-150.0,0.00015669,2]
[419700631,1775315446779,-500.0,0.00015675,2]
[419700632,1775315446789,-151.0,0.00015675,2]
[419700633,1775315446799,-2191.80810614,0.0001568,2]
[419700646,1775315446971,-150.0,0.0001568,2]
[419700648,1775315446982,-150.0,0.0001568,2]
[419700650,1775315446991,-150.0,0.0001568,2]
[419700652,1775315447001,-1016.43287635,0.0001568,2]
[419700654,1775315447010,-1135.72896171,0.0001568,2]
[419700656,1775315447020,-1060.13485499,0.0001568,2]
[419700658,1775315447031,-166.66,0.00015691,2]
[419700660,1775315447040,-150.0,0.00015695,2]
[419700663,1775315447049,-150.0,0.00015697,2]
[419700665,1775315447059,-150.0,0.00015697,2]
[419700667,1775315447068,-2000.0,0.000157,2]
[419700669,1775315447078,-2000.0,0.00015701,2]
[419700671,1775315447087,-150.0,0.00015701,2]
[419700673,1775315447096,-150.0,0.00015702,2]
[419700675,1775315447106,-150.0,0.00015709,2]
[419700677,1775315447115,-150.0,0.00015709,2]
[419700679,1775315447125,-1046.0,0.0001571,2]
[419700681,1775315447135,-2603.0,0.00015714,2]
[419700684,1775315447157,-150.0,0.00015719,2]
[419700685,1775315447173,-1263.0,0.0001572,2]
[419700686,1775315447183,-150.0,0.0001572,2]
[419700687,1775315447193,-6019.0,0.0001572,2]
[419700688,1775315447204,-2470.0,0.0001572,2]
[419700689,1775315447214,-1217.0,0.0001572,2]
[419700690,1775315447225,-194609.24030404,0.0001572,2]
[419700691,1775315447235,-150.0,0.00015723,2]
[419700692,1775315447245,-150.0,0.00015724,2]
[419700693,1775315447255,-150.0,0.00015724,2]
[419700694,1775315447265,-1100.0,0.00015726,2]
[419700695,1775315447275,-600.0,0.00015726,2]
[419700696,1775315447285,-1000.0,0.00015727,2]
[419700697,1775315447297,-200.0,0.00015728,2]
[419700698,1775315447307,-492.45889797,0.00015728,2]
[419700699,1775315447317,-771.01748645,0.00015728,2]
[419700700,1775315447327,-200.0,0.00015728,2]
[419700701,1775315447337,-181.08010149,0.00015728,2]
[419700702,1775315447348,-191.85702264,0.00015728,2]
[419700703,1775315447357,-500.0,0.0001573,2]
[419700704,1775315447368,-151.0,0.0001573,2]
[419700705,1775315447378,-1000.0,0.00015732,2]
[419700706,1775315447387,-150.0,0.00015733,2]
[419700707,1775315447398,-371.15026946,0.00015737,2]
[419700708,1775315447407,-150.0,0.00015738,2]
[419700709,1775315447417,-150.0,0.0001574,2]
[419700710,1775315447427,-150.0,0.00015744,2]
[419700711,1775315447437,-150.0,0.00015744,2]
[419700712,1775315447447,-150.0,0.00015752,2]
[419700713,1775315447457,-150.0,0.00015752,2]
[419700714,1775315447468,-1860.18,0.00015753,2]
[419700715,1775315447478,-1000.0,0.00015758,2]
[419700716,1775315447488,-418.62752302,0.00015762,2]
[419700717,1775315447499,-150.0,0.00015765,2]
[419700718,1775315447508,-150.0,0.00015767,2]
[419700719,1775315447518,-276.0,0.00015768,2]
[419700720,1775315447528,-150.0,0.00015771,2]
[419700721,1775315447538,-150.0,0.00015771,2]
[419700722,1775315447548,-150.0,0.00015771,2]
[419700723,1775315447558,-150.0,0.00015777,2]
[419700724,1775315447568,-150.0,0.00015779,2]
[419700725,1775315447578,-150.0,0.00015779,2]
[419700726,1775315447588,-150.0,0.00015782,2]
[419700727,1775315447598,-150.0,0.00015787,2]
[419700728,1775315447608,-1000.0,0.00015788,2]
[419700729,1775315447618,-150.0,0.00015796,2]
[419700730,1775315447628,-2000.0,0.000158,2]
[419700731,1775315447638,-2000.0,0.00015801,2]
[419700732,1775315447648,-150.0,0.00015803,2]
[419700733,1775315447658,-150.0,0.00015807,2]
[419700734,1775315447668,-150.0,0.00015807,2]
[419700735,1775315447677,-150.0,0.00015808,2]
[419700736,1775315447687,-150.0,0.00015808,2]
[419700737,1775315447696,-150.0,0.0001581,2]
[419700738,1775315447707,-150.0,0.00015814,2]
[419700739,1775315447716,-1000.0,0.00015819,2]
[419700740,1775315447726,-150.0,0.0001582,2]
[419700741,1775315447736,-150.0,0.00015825,2]
[419700742,1775315447746,-150.0,0.00015826,2]
[419700743,1775315447756,-150.0,0.00015829,2]
[419700744,1775315447766,-150.0,0.00015831,2]
[419700745,1775315447776,-150.0,0.00015834,2]
[419700746,1775315447786,-150.0,0.00015834,2]
[419700747,1775315447796,-1966.97618,0.0001584,2]
[419700748,1775315447806,-1966.97618,0.0001584,2]
[419700749,1775315447816,-1966.97618,0.0001584,2]
[419700750,1775315447825,-150.0,0.00015848,2]
[419700751,1775315447836,-150.0,0.00015851,2]
[419700752,1775315447847,-150.0,0.00015851,2]
[419700753,1775315447857,-785.54,0.00015854,2]
[419700754,1775315447867,-150.0,0.00015855,2]
[419700755,1775315447878,-150.0,0.00015855,2]
[419700756,1775315447888,-1000.0,0.00015855,2]
[419700757,1775315447899,-150.0,0.00015859,2]
[419700759,1775315447908,-150.0,0.0001586,2]
[419700760,1775315447918,-150.385,0.0001586,2]
[419700761,1775315447928,-180.914,0.0001586,2]
[419700762,1775315447938,-150.0,0.0001586,2]
[419700763,1775315447949,-150.165,0.0001586,2]
[419700764,1775315447959,-150.0,0.0001586,2]
[419700765,1775315447969,-150.0,0.0001586,2]
[419700766,1775315447979,-150.0,0.0001586,2]
[419700767,1775315447989,-150.0,0.0001586,2]
[419700768,1775315447999,-622.0,0.0001586,2]
[419700769,1775315448010,-1347.0,0.0001586,2]
[419700770,1775315448021,-150.0,0.00015862,2]
[419700771,1775315448031,-150.0,0.00015862,2]
[419700772,1775315448041,-500.0,0.00015872,2]
[419700773,1775315448051,-200.0,0.00015872,2]
[419700774,1775315448061,-150.0,0.00015872,2]
[419700775,1775315448072,-150.0,0.00015872,2]
[419700776,1775315448083,-1000.0,0.00015874,2]
[419700777,1775315448092,-150.0,0.00015884,2]
[419700778,1775315448103,-9360.56721341,0.00015885,2]
[419700779,1775315448113,-8154.22157126,0.00015885,2]
[419700780,1775315448123,-150.0,0.00015886,2]
[419700781,1775315448133,-150.0,0.00015886,2]
[419700783,1775315448143,-150.0,0.00015888,2]
[419700784,1775315448153,-150.0,0.0001589,2]
[419700785,1775315448165,-150.0,0.0001589,2]
[419700786,1775315448176,-2000.0,0.0001589,2]
[419700787,1775315448186,-276.0,0.00015891,2]
[419700788,1775315448199,-150.0,0.00015893,2]
[419700789,1775315448210,-2000.0,0.000159,2]
[419700790,1775315448222,-282.04099016,0.000159,2]
[419700791,1775315448233,-418.62752302,0.000159,2]